Cogmind - Beta 14 @@@ ROGUE MODE // 2024.11.20 @ 13:18:30 Player: Prominous Vale Result: Destroyed by G-47 Trooper with Particle Gun Performance ------------- Evolutions (0) 0 Regions Visited (4) 800 Robots Destroyed (20) 100 Value Destroyed (558) 558 Prototype IDs (23) 460 Alien Tech Used (0) 0 Bonus (259) 259 TOTAL SCORE: 2177 Bonus ------- Aligned with FarCom 300 Friendly Fire -41 Cogmind --------- Core Integrity 0/250 Matter 38/300 Energy 91/100 System Corruption 3% Temperature Warning (301) Movement Core (100) Ox1 Location -9/Mines Parts ------- > --- POWER (1) -------- (None) > --- PROPULSION (2) --- (None) > --- UTILITY (2) ------ Improved Terrain Scanner Terrain Scan Processor > --- WEAPON (2) ------- Medium Laser Grenade Launcher > --- INVENTORY (5) ---- Heat Sink Cloak of Protection EM Pulse Gun Small Laser Particle Gun Peak State ------------ > --- POWER ------------ Ion Engine > --- PROPULSION ------- Light Treads Hover Unit > --- UTILITY ---------- Terrain Scan Processor Cloak of Protection > --- WEAPON ----------- Medium Laser Grenade Launcher > --- INVENTORY -------- Heat Sink Improved Terrain Scanner EM Pulse Gun Small Laser Particle Gun [Rating: 15] Favorites ----------- Power Ion Engine Engine Ion Engine Propulsion Light Treads Treads Light Treads Hover Unit Hover Unit Utility Improved Terrain Scanner Device Improved Terrain Scanner Processor Terrain Scan Processor Weapon Medium Laser Energy Gun Medium Laser Launcher Grenade Launcher Build | -11 -10 -10 -10 -9 ------- Run | Yrd Mat Min Exi Min Slots Evolved . | . . . . . Power . | . . . . . Propulsion . | . . . . . Utility . | . . . . . Weapon . | . . . . . Parts Attached 20 | 8 7 . 4 1 Power 2 | 1 . . 1 . Engine 2 | 1 . . 1 . Core . | . . . . . Reactor . | . . . . . Propulsion 3 | 2 1 . . . Treads 2 | 2 . . . . Leg . | . . . . . Wheel . | . . . . . Hover 1 | . 1 . . . Flight . | . . . . . Utility 11 | 2 5 . 3 1 Device 10 | 2 4 . 3 1 Storage . | . . . . . Processor 1 | . 1 . . . Hackware . | . . . . . Protection . | . . . . . Artifact . | . . . . . Weapon 4 | 3 1 . . . Energy Gun 3 | 3 . . . . Energy Cannon . | . . . . . Ballistic Gun . | . . . . . Ballistic Cannon . | . . . . . Launcher 1 | . 1 . . . Special Weapon . | . . . . . Impact Weapon . | . . . . . Slashing Weapon . | . . . . . Piercing Weapon . | . . . . . Special Melee Weapon . | . . . . . Unidentified Prototypes . | . . . . . Parts Lost 3 | . . . 1 2 Power 1 | . . . . 1 Propulsion 2 | . . . 1 1 Utility . | . . . . . Weapon . | . . . . . Highest Loss Streak 2 | . . . 1 2 To Critical Strikes . | . . . . . Average Slot Usage (%) 98 | . 99 100 98 71 Engine 13 | . 14 14 13 9 Treads 15 | . 24 14 14 4 Hover 11 | . 3 14 13 . Device 16 | . 25 14 14 14 Processor 11 | . 2 14 14 14 Energy Gun 15 | . 22 14 14 14 Launcher 12 | . 5 14 14 14 Peak Build Rating 15 | 9 10 10 15 14 Average Rating 9 | 6 8 10 10 9 On Entrance 8 | . 9 10 10 14 Naked Turns . | . . . . . Heaviest Build 18 | 11 12 11 18 18 Greatest Support 40 | 40 40 20 20 20 Greatest Overweight (x) 3 | 1 . . . 3 Average Overweight (x) . | . . . . . Largest Inventory Capacity 5 | 5 5 5 5 5 Average Capacity 5 | 5 5 5 5 5 Most Carried 5 | 4 5 5 5 5 Average Carried 3 | 1 3 5 4 5 Final Capacity 5 | 5 5 5 5 5 Final Carried 5 | 2 5 5 5 5 Class Distribution -------------------- 98% | Mutant Dominant Class ---------------- Mutant | -10/Materials Mutant | -10/Mines Mutant | -10/Exiles Skirmisher | -9/Mines Resources | -11 -10 -10 -10 -9 ----------- Run | Yrd Mat Min Exi Min Matter Collected 343 | 280 30 33 . . Remotely . | . . . . . Salvage Created 605 | 136 355 . 67 47 Parts 30 | 9 13 . 6 2 Haulers Intercepted . | . . . . . Recyclers Shooed . | . . . . . Parts Field Recycled . | . . . . . Retrieved Matter . | . . . . . Parts Self-Destructed . | . . . . . Prevented . | . . . . . Kills | -11 -10 -10 -10 -9 ------- Run | Yrd Mat Min Exi Min Combat Hostiles Destroyed 12 | . 7 . 4 1 Guns 5 | . 5 . . . AOE 5 | . . . 4 1 Classes Destroyed 9 | 2 4 . 2 1 Builder 1 | . 1 . . . Tunneler 3 | 3 . . . . Recycler 1 | 1 . . . . Operator 1 | . 1 . . . Watcher 1 | . 1 . . . Grunt 10 | . 7 . 2 1 Hunter 1 | . . . 1 . Programmer 1 | . . . 1 . Zionite 1 | . . . . 1 Best Kill Streak 3 | 1 3 . 3 1 Combat Bots Only 3 | . 2 . 3 1 Max Kills in Single Turn 1 | 1 1 . 1 1 Gunslinging . | . . . . . Exploded 1 | . . . 1 1 Melee . | . . . . . Uniques/NPCs Destroyed . | . . . . . Combat | -11 -10 -10 -10 -9 -------- Run | Yrd Mat Min Exi Min Hostile Shots Fired 101 | . 37 . 45 19 Missed 31 | . 12 . 13 6 Damage Taken 1067 | . 341 39 460 227 Core 259 | . 89 . 66 104 Absorbed by Shields . | . . . . . Core Remaining (%) 100 | 100 . . . . Volleys Fired 67 | 15 29 1 14 8 Largest 2 | 2 2 2 1 1 Hottest 100 | 100 100 80 30 50 Shots Fired 112 | 30 58 2 14 8 Gun 90 | 30 54 1 . 5 Cannon . | . . . . . Launcher 22 | . 4 1 14 3 Special . | . . . . . Kinetic . | . . . . . Thermal 83 | 23 54 1 . 5 Explosive 22 | . 4 1 14 3 Electromagnetic 7 | 7 . . . . Robot Hit Streak 12 | 8 12 . 6 6 Robot Miss Streak 4 | 2 4 . 1 3 Penetration Max . | . . . . . Secondary Targets . | . . . . . Shots Hit Robots 71 | 21 37 . 10 3 Core Hits 37 | 5 18 . 11 3 Critical Kills . | . . . . . Critical Parts Destroyed . | . . . . . Critical Strikes 5 | 1 4 . . . Burn 4 | . 4 . . . Corrupt 1 | 1 . . . . Melee Attacks . | . . . . . Impact . | . . . . . Slashing . | . . . . . Piercing . | . . . . . Sneak Attacks . | . . . . . Combat Hostiles . | . . . . . Follow-up Attacks . | . . . . . Damage Inflicted 1423 | 266 611 . 422 124 Guns 738 | 266 446 . . 26 Cannons . | . . . . . Explosions 685 | . 165 . 422 98 Melee . | . . . . . Ramming . | . . . . . Kinetic . | . . . . . Thermal 662 | 190 446 . . 26 Explosive 685 | . 165 . 422 98 Electromagnetic 76 | 76 . . . . Impact . | . . . . . Slashing . | . . . . . Piercing . | . . . . . Highest Corruption 3 | . . . 3 3 Average Corruption 2 | . . . 2 3 Corruption Purged . | . . . . . Corruption Blocked . | . . . . . Effects 3 | . . . 2 1 Heat Flow Errors 3 | . . . 2 1 Overload Shots . | . . . . . Overflow Damage 7 | . . . 2 5 Projectiles . | . . . . . Explosions 7 | . . . 2 5 Melee . | . . . . . Knockbacks . | . . . . . Impact . | . . . . . Kinetic . | . . . . . Secondary . | . . . . . Self-Inflicted Damage 73 | . 1 40 . 32 Shots 4 | . 1 1 . 2 Rammed . | . . . . . Targets Rammed . | . . . . . Kicked . | . . . . . Crushed . | . . . . . Highest Temperature 321 | 140 321 18 189 317 Average Temperature 101 | 44 124 12 93 195 Received Heat Transfer 351 | . 189 . 54 108 Effects 3 | . . . . 3 Interference 3 | . . . . 3 Siege Activations . | . . . . . Robots Corrupted . | . . . . . Combat Hostiles . | . . . . . Parts Fried . | . . . . . Impact Corruptions . | . . . . . Robots Melted 2 | . 2 . . . Combat Hostiles 2 | . 2 . . . Parts Melted 9 | 1 8 . . . Heat Transferred 2257 | 555 1628 . . 74 Parts Sabotaged . | . . . . . Parts Stolen . | . . . . . Parts Stripped . | . . . . . Power Chain Reactions . | . . . . . Alert | -11 -10 -10 -10 -9 ------- Run | Yrd Mat Min Exi Min Peak Influence 309 | 20 309 120 . 31 Initial 120 | . . 120 . . Average 80 | 10 163 120 . 18 Maximum Alert Level 1 | . 1 . . . Low Security (%) 85 | 100 57 100 . 100 Level 1 14 | . 42 . . . Level 2 . | . . . . . Level 3 . | . . . . . Level 4 . | . . . . . Level 5 . | . . . . . High Security . | . . . . . Max Security . | . . . . . Squads Dispatched 1 | . 1 . . . Investigation . | . . . . . Extermination . | . . . . . Reinforcement 1 | . 1 . . . Assault . | . . . . . Garrison . | . . . . . Intercept . | . . . . . Searches Triggered . | . . . . . Construction Impeded . | . . . . . Haulers Reinforced . | . . . . . Active Scanning Responses . | . . . . . Cargo Convoy Interrupts . | . . . . . Stealth | -11 -10 -10 -10 -9 --------- Run | Yrd Mat Min Exi Min Distress Signals 1 | . 1 . . . Communications Jammed . | . . . . . Distress Signals . | . . . . . Times Spotted 20 | . 13 . 5 2 Peak Tracking Total 3 | . 3 . 3 2 Tactical Retreats . | . . . . . Traps | -11 -10 -10 -10 -9 ------- Run | Yrd Mat Min Exi Min Traps Triggered . | . . . . . Indirectly . | . . . . . Trap Hack Attempts . | . . . . . Triggered . | . . . . . Disarmed . | . . . . . Reprogrammed . | . . . . . Reused . | . . . . . Traps Extracted . | . . . . . Installed . | . . . . . Triggered . | . . . . . Machines | -11 -10 -10 -10 -9 ---------- Run | Yrd Mat Min Exi Min Machines Disabled 3 | . . . 3 . Max in Single Turn 2 | . . . 2 . Machines Repaired . | . . . . . Machines Dismantled . | . . . . . Machines Sabotaged . | . . . . . Overloaded Fab Kills . | . . . . . Hacking | -11 -10 -10 -10 -9 --------- Run | Yrd Mat Min Exi Min Machines Accessed 5 | . 2 . 3 . Terminals 2 | . 2 . . . Fabricators . | . . . . . Repair Stations . | . . . . . Recycling Units . | . . . . . Scanalyzers . | . . . . . Garrison Access . | . . . . . Total Hacks 22 | . 4 . 18 . Successful 21 | . 3 . 18 . Failed 1 | . 1 . . . Catastrophic . | . . . . . Database Lockouts . | . . . . . Manual 1 | . . . 1 . Terminals 4 | . 4 . . . Fabricators . | . . . . . Repair Stations . | . . . . . Recycling Units . | . . . . . Scanalyzers . | . . . . . Garrison Access . | . . . . . Terminal Hacks 21 | . 3 . 18 . Record 17 | . . . 17 . Locate Traps 1 | . 1 . . . Registered Components 1 | . 1 . . . Zone Layout 1 | . 1 . . . Derelict Proto ID Bank 1 | . . . 1 . Fabricator Hacks . | . . . . . Repair Station Hacks . | . . . . . Recycling Unit Hacks . | . . . . . Scanalyzer . | . . . . . Garrison Access Hacks . | . . . . . Unauthorized Hacks . | . . . . . Terminals . | . . . . . Fabricators . | . . . . . Repair Stations . | . . . . . Recycling Units . | . . . . . Scanalyzers . | . . . . . Garrison Access . | . . . . . Data Cores Recovered . | . . . . . Used . | . . . . . Hacking Detections 2 | . 2 . . . Full Trace Events . | . . . . . Feedback Events . | . . . . . Feedback Blocked . | . . . . . Robot Schematics Acquired . | . . . . . Robots Built . | . . . . . Authchips . | . . . . . Time . | . . . . . Total Robot Build Rating . | . . . . . Part Schematics Acquired . | . . . . . Parts Built . | . . . . . Authchips . | . . . . . Time . | . . . . . Total Part Build Rating . | . . . . . Parts Repaired . | . . . . . Time . | . . . . . Parts Recycled . | . . . . . Recycled Matter . | . . . . . Retrieved Matter . | . . . . . Retrieved Components . | . . . . . Parts Scanalyzed . | . . . . . Part Schematics Acquired . | . . . . . Parts Damaged . | . . . . . Bothacking | -11 -10 -10 -10 -9 ------------ Run | Yrd Mat Min Exi Min Used RIF Installer . | . . . . . Robots Hacked . | . . . . . Non-combat . | . . . . . Combat . | . . . . . Robot Hacks Applied . | . . . . . Relay Couplers Released . | . . . . . Fabnet Peak Effective % . | . . . . . Robots Rewired . | . . . . . Allies Hacked . | . . . . . Hacks Repelled . | . . . . . Allies | -11 -10 -10 -10 -9 -------- Run | Yrd Mat Min Exi Min Total Allies . | . . . . . Largest Group . | . . . . . Highest-Rated Group . | . . . . . Highest-Rated Ally . | . . . . . Total Orders . | . . . . . Ally Attacks . | . . . . . Total Damage . | . . . . . Kills . | . . . . . Allies Corrupted . | . . . . . Allies Melted . | . . . . . Intel | -11 -10 -10 -10 -9 ------- Run | Yrd Mat Min Exi Min Robot Analysis Total . | . . . . . Derelict Logs Recovered 2 | . . 2 . . Drone Launches . | . . . . . Drone Recoveries . | . . . . . Exploration | -11 -10 -10 -10 -9 ------------- Run | Yrd Mat Min Exi Min Turns Passed 2464 | 499 364 166 1400 35 Spaces Moved 1094 | 126 125 101 732 10 Core 19 | 16 . . . 3 Treads 1075 | 110 125 101 732 7 Legs . | . . . . . Wheels . | . . . . . Hover . | . . . . . Flight . | . . . . . Fastest Speed 50 | 50 160 160 160 100 Average Speed 158 | 150 160 160 160 162 Slowest Speed 200 | 160 160 160 160 200 Overloaded Moves . | . . . . . Propulsion Burnouts . | . . . . . Robots Hopped . | . . . . . Cave-ins Triggered . | . . . . . Exploration Rate (%) 35 | 7 32 37 92 7 Regions Visited 4 Branch Regions 3 Pre-discovered Areas 1 | . . 1 . . Known Exits Taken . | . . . . . Unknown Exits Taken 4 | 1 1 1 1 . Scrap Searched 1 | . . 1 . . Spaces Dug 9 | . 9 . . . Terrain Destroyed 81 | . 22 . 29 30 Melee . | . . . . . Projectile . | . . . . . AOE 81 | . 22 . 29 30 Terrain Rammed . | . . . . . Walls Destroyed . | . . . . . Machines Disabled . | . . . . . Actions | -11 -10 -10 -10 -9 --------- Run | Yrd Mat Min Exi Min Total 1704 | 405 229 104 946 20 Wait 507 | 248 63 3 192 1 Move 1090 | 125 124 100 731 10 Hop . | . . . . . Pick Up 14 | 9 3 . 2 . Fast Attach 4 | . 3 . 1 . Attach 7 | 7 . . . . Detach . | . . . . . Swap 9 | 1 4 . 3 1 Drop 6 | . 3 . 3 . Fire 67 | 15 29 1 14 8 Melee . | . . . . . Ram . | . . . . . Kick . | . . . . . Crush . | . . . . . Escape Stasis . | . . . . . Rewire . | . . . . . Trap . | . . . . . Miscellaneous . | . . . . . Route ------- -11/Scrapyard -10/Materials -10/Mines (discovered 2 exits: *Exi / Sub) -10/Exiles (discovered 2 exits: [*Min x2]) -9/Mines History --------- Turn | Location | Event 21 | -11/Scrapyard | Discovered new exit (range 13) 500 | -11/Scrapyard | Entered Materials 501 | -10/Materials | Build established: Mutant 837 | -10/Materials | Discovered new exit (range 13) 864 | -10/Materials | Entered Mines 923 | -10/Mines | Learned location of Zion (-7) 941 | -10/Mines | Identified exit to Subcaves 1019 | -10/Mines | Deemed a non-threat by the Exiles lab entrance 1019 | -10/Mines | Discovered new exit (range 5) 1030 | -10/Mines | Entered Exiles 1080 | -10/Exiles | Discovered new exit (range 14) 1111 | -10/Exiles | Met 8R-AWN 1138 | -10/Exiles | Met EX-HEX 1258 | -10/Exiles | Met EX-DEC 1392 | -10/Exiles | Discovered new exit (range 14) 1577 | -10/Exiles | Visited The Gauntlet 2002 | -10/Exiles | Met EX-BIN 2057 | -10/Exiles | Aligned with FarCom system 2058 | -10/Exiles | Given EX-Vault access code 2097 | -10/Exiles | Opened EX-Vault 2162 | -10/Exiles | Exiles lab attacked by MAIN.C 2210 | -10/Exiles | Found Cloak of Protection 2356 | -10/Exiles | Core integrity fell below 50% 2430 | -10/Exiles | Left Exiles lab with Cloak of Protection 2430 | -10/Exiles | Entered Mines 2452 | -9/Mines | Core integrity fell below 20% 2465 | -9/Mines | Destroyed by G-47 Trooper with Particle Gun Last Messages --------------- System corrupted: Heat flow error (+209). LOCATION=UNKNOWN GOAL=ESCAPE Receiving FarCom transmissions... DK-RAY destroyed. G-34 Mercenary destroyed. Lgt. Treads destroyed. Destroyed Lgt. Treads. System corrupted: Heat flow error (+286). Ion Engine destroyed. U-05 Engineer lays Concrete. U-05 Engineer builds a Wall. U-05 Engineer lays Concrete. R-06 Scavenger collects Aluminum Leg. U-05 Engineer lays Concrete. Overheating: System interference. Terrain Scan Processor temporarily disabled. Med. Laser temporarily disabled. U-05 Engineer builds a Wall. U-05 Engineer lays Concrete. Map ----- +----------------------------------------------------+ | ????????????????????????????????????????????? | | ????????????????????????????????????????????? | | ????????????????????????????????????????????? | | ????????????????????????????????????????????? | | ????????????????????????????????????????????? | | ????????????????????????????????????????????? | | ????????????????????????????????????????????? | | ????????????????????????????????????????????? | | ????????????????????????????????????????????? | | ???????????????????????? ???????????????????? | | ????????????????????????? ???????????????? | | ????????????????????????? ??????????????? | | ???????????????????????#? ? ???????????? | | ????????????????##??????? ?? ??????????? | | ???????????????????#?#??# ??? ?????????? | | ?????????????#??????????? ?? ????????? | | ???????????????????#???#? ?? ?????????? | | ?????????#?????##?#?????# #? ????????? | | ??????????#?#????#??#???# ## ??????????? | | ??????????????##????#?#?# # ? ?? ##????? | | ????????????#??#?????#??# # ???? ?##?????? | | ??????????#???## ????#### #??#?? ?????????? | | ?????????#?#?## ### #?#?#???????????? | | ??????????#??# #??#??##????????? | | ?????????????# """ uu #????#????#??????? | | ????????????? """ #### @r#?????##?#???????? | | ?????????????? "?????####g ##### #??#??????? | | ????????????????????????# #???#????????????? | | ????????? ??????????##### ####?##??#???##???? | | ?????????????????????# #???#????#?????? | | ??????????????#?##??## =% #?????##??????? | | ???????????#???????#?# #????????????? | | ?????????????#??????## ##?#???#?????? | | ???????????????#?????# #??#?????????? | | ????????????####?????#### #????????????? | | ????????????????????##???# ##???????????? | | | | | | | | | | | | | | | | | | | | | | | | | | | | | +----------------------------------------------------+ Best States ------------- Heat Dissipation 35 Energy Generation 10 Energy Capacity 250 Matter Stores 300 Matter Capacity 300 Sight Range 16 Terrain Scan Range 16 Terrain Scan Density 85 Cloak Strength 5 Evasion (%) 40 Recoil Reduction 2 Item Schematics ----------------- None Robot Schematics ------------------ None Fabricated ------------ Nothing Alien Tech Used ----------------- None Achievements -------------- None Challenges ------------ None Game ------ Seed BoreTimingPurifier Manual? 0 Play Time 00:21:22 Cumulative 16.4 hours Start 2024.11.20 @ 12:57:27 End 2024.11.20 @ 13:18:30 Sessions 1 Manual Loads 0 Difficulty Rogue Special Mode None Game No. 30 Rogue 30 Adventurer 0 Explorer 0 Win Type - Total 0 Types 0/0/0/0/0/0/0/0/0 Lore% 12 Gallery% 22 Achievement% 17 Wizard Run 0 Options --------- Layout 1 ASCII 0 Keyboard 0 Movement Mouse Keybinds 0 Fullscreen 1 Font 24/Smallcaps Map View 50x35 Zoom Use 0% Tactical HUD 0 Map Filters NONE Filters NONE Steam X RUN: f037c9ed-d82e-4a4f-8c92-9cd6329ca633